[Event "*** Titled Tuesday Blitz"]
[Site "Chess.com"]
[Date "2021.04.20"]
[Round "2"]
[White "Trickov"]
[Black "ajedrez1101"]
[Result "1-0"]
[WhiteElo "2412"]
[BlackElo "2145"]
[TimeControl "180+1"]
[EndTime "10:17:55 PDT"]
[Termination "Trickov won by resignation"]

1. d4 {[%clk 0:02:57.6]} 1... b6 {[%clk 0:02:59.8]} 2. Nf3 {[%clk 0:02:54]} 2...
Bb7 {[%clk 0:02:59.8]} 3. g3 {[%clk 0:02:54.5]} 3... Bxf3 {[%clk 0:02:59]} 4.
exf3 {[%clk 0:02:53.9]} 4... e6 {[%clk 0:02:58.9]} 5. Bg2 {[%clk 0:02:53.4]}
5... d5 {[%clk 0:02:58]} 6. f4 {[%clk 0:02:53.5]} 6... Nf6 {[%clk 0:02:57.9]} 7.
O-O {[%clk 0:02:53.3]} 7... Nc6 {[%clk 0:02:57.1]} 8. Re1 {[%clk 0:02:52.5]}
8... Be7 {[%clk 0:02:56.2]} 9. c3 {[%clk 0:02:49.3]} 9... Kf8 {[%clk 0:02:57.1]}
10. Nd2 {[%clk 0:02:49]} 10... Kg8 {[%clk 0:02:50.1]} 11. Nf3 {[%clk 0:02:48.8]}
11... h6 {[%clk 0:02:42.3]} 12. Ne5 {[%clk 0:02:48.7]} 12... Nxe5 {[%clk
0:02:36.9]} 13. fxe5 {[%clk 0:02:48]} 13... Nd7 {[%clk 0:02:37.1]} 14. Qd3
{[%clk 0:02:36]} 14... g6 {[%clk 0:02:29.7]} 15. Be3 {[%clk 0:02:31]} 15... Kg7
{[%clk 0:02:27.7]} 16. Qd2 {[%clk 0:02:27.7]} 16... c5 {[%clk 0:02:25.1]} 17. h4
{[%clk 0:02:17.7]} 17... h5 {[%clk 0:01:46.9]} 18. c4 {[%clk 0:02:15]} 18...
dxc4 {[%clk 0:01:26]} 19. Bxa8 {[%clk 0:02:11.2]} 19... Qxa8 {[%clk 0:01:21.7]}
20. Rad1 {[%clk 0:02:10.8]} 20... b5 {[%clk 0:00:56.5]} 21. Bg5 {[%clk
0:01:32.9]} 21... Bxg5 {[%clk 0:00:39.5]} 22. Qxg5 {[%clk 0:01:31.6]} 22... Rf8
{[%clk 0:00:34.5]} 23. Qe7 {[%clk 0:01:05]} 23... Qc6 {[%clk 0:00:32.2]} 24. d5
{[%clk 0:00:48.2]} 24... exd5 {[%clk 0:00:32.1]} 25. e6 {[%clk 0:00:46.4]} 25...
Nf6 {[%clk 0:00:32.7]} 26. Re5 {[%clk 0:00:25.7]} 26... Qe8 {[%clk 0:00:21.6]}
27. Qxc5 {[%clk 0:00:16.9]} 27... fxe6 {[%clk 0:00:20.9]} 28. Qxa7+ {[%clk
0:00:16.4]} 28... Rf7 {[%clk 0:00:21]} 29. Qd4 {[%clk 0:00:16.1]} 29... Qe7
{[%clk 0:00:20.6]} 30. Rde1 {[%clk 0:00:16]} 30... Qb4 {[%clk 0:00:19.1]} 31.
Rxe6 {[%clk 0:00:15.5]} 31... Qa4 {[%clk 0:00:17.9]} 32. a3 {[%clk 0:00:15.3]}
32... Qc2 {[%clk 0:00:17.6]} 33. R6e2 {[%clk 0:00:14.6]} 33... Qf5 {[%clk
0:00:18]} 34. Re5 {[%clk 0:00:14.4]} 34... Qf3 {[%clk 0:00:18.1]} 35. R1e3
{[%clk 0:00:14.2]} 35... Qg4 {[%clk 0:00:16]} 36. Rxd5 {[%clk 0:00:13.9]} 36...
Kh7 {[%clk 0:00:14.3]} 37. Qxg4 {[%clk 0:00:09.7]} 37... Nxg4 {[%clk 0:00:15.2]}
38. Re8 {[%clk 0:00:09.2]} 38... Nxf2 {[%clk 0:00:15.1]} 39. Rxb5 {[%clk
0:00:09]} 39... Nd3 {[%clk 0:00:15.1]} 40. Reb8 {[%clk 0:00:08.4]} 40... Re7
{[%clk 0:00:14]} 41. R8b7 {[%clk 0:00:08.5]} 41... Rxb7 {[%clk 0:00:13.1]} 42.
Rxb7+ {[%clk 0:00:08.8]} 42... Kg8 {[%clk 0:00:14]} 43. a4 {[%clk 0:00:09.1]}
43... Kf8 {[%clk 0:00:14.5]} 44. a5 {[%clk 0:00:09.4]} 44... Nc5 {[%clk
0:00:14.3]} 45. Rc7 {[%clk 0:00:08.9]} 45... Na6 {[%clk 0:00:14.1]} 46. Rxc4
{[%clk 0:00:08.3]} 46... Ke7 {[%clk 0:00:14.7]} 47. Rc6 {[%clk 0:00:08.5]} 47...
Nb4 {[%clk 0:00:14.3]} 48. Rxg6 {[%clk 0:00:08.4]} 48... Kf7 {[%clk 0:00:14.9]}
49. Rg5 {[%clk 0:00:08.6]} 49... Kf6 {[%clk 0:00:15]} 50. Rxh5 {[%clk
0:00:08.8]} 50... Kg6 {[%clk 0:00:15.5]} 51. Rb5 {[%clk 0:00:09.1]} 51... Kf6
{[%clk 0:00:15.7]} 52. Rxb4 {[%clk 0:00:09.2]} 1-0

[Event "*** Titled Tuesday Blitz"]
[Site "Chess.com"]
[Date "2021.04.20"]
[Round "2"]
[White "kleopl"]
[Black "Margency"]
[Result "0-1"]
[WhiteElo "2497"]
[BlackElo "2720"]
[TimeControl "180+1"]
[EndTime "10:17:56 PDT"]
[Termination "Margency won by checkmate"]

1. c4 {[%clk 0:03:00.9]} 1... e6 {[%clk 0:02:57.7]} 2. Nc3 {[%clk 0:03:00.2]}
2... d5 {[%clk 0:02:57.9]} 3. d4 {[%clk 0:02:59.7]} 3... c5 {[%clk 0:02:57.9]}
4. cxd5 {[%clk 0:02:58.1]} 4... exd5 {[%clk 0:02:56.5]} 5. Nf3 {[%clk
0:02:57.2]} 5... Nc6 {[%clk 0:02:56.8]} 6. g3 {[%clk 0:02:57.4]} 6... Nf6 {[%clk
0:02:55]} 7. Bg2 {[%clk 0:02:57.5]} 7... Be7 {[%clk 0:02:54.9]} 8. O-O {[%clk
0:02:57.6]} 8... O-O {[%clk 0:02:54.4]} 9. b3 {[%clk 0:02:57.8]} 9... Ne4 {[%clk
0:02:23.7]} 10. Bb2 {[%clk 0:02:54.2]} 10... Bf6 {[%clk 0:02:23.7]} 11. e3
{[%clk 0:02:45.3]} 11... cxd4 {[%clk 0:02:21.9]} 12. Nxd4 {[%clk 0:02:41.8]}
12... Bxd4 {[%clk 0:02:12.3]} 13. exd4 {[%clk 0:02:38.2]} 13... Nxc3 {[%clk
0:02:00]} 14. Bxc3 {[%clk 0:02:39.1]} 14... Bf5 {[%clk 0:01:57.7]} 15. Re1
{[%clk 0:02:36.1]} 15... Qd7 {[%clk 0:01:55.7]} 16. Qd2 {[%clk 0:02:31.3]} 16...
Rfe8 {[%clk 0:01:49.9]} 17. Qf4 {[%clk 0:02:07.7]} 17... Bh3 {[%clk 0:01:34.8]}
18. Bf3 {[%clk 0:02:02.1]} 18... Bf5 {[%clk 0:00:55]} 19. h4 {[%clk 0:01:57.6]}
19... h6 {[%clk 0:00:53.8]} 20. Rad1 {[%clk 0:01:51.6]} 20... Rac8 {[%clk
0:00:50.5]} 21. Rxe8+ {[%clk 0:01:44.5]} 21... Rxe8 {[%clk 0:00:50.3]} 22. Re1
{[%clk 0:01:38.5]} 22... Rxe1+ {[%clk 0:00:50]} 23. Bxe1 {[%clk 0:01:39.4]}
23... Qe6 {[%clk 0:00:50.5]} 24. Qe3 {[%clk 0:01:34.8]} 24... Be4 {[%clk
0:00:47.7]} 25. Bxe4 {[%clk 0:01:09]} 25... dxe4 {[%clk 0:00:46.8]} 26. Bc3
{[%clk 0:01:05.3]} 26... Ne7 {[%clk 0:00:44.4]} 27. Qf4 {[%clk 0:00:58.5]} 27...
Nd5 {[%clk 0:00:42.1]} 28. Qb8+ {[%clk 0:00:58.3]} 28... Kh7 {[%clk 0:00:42.3]}
29. Bd2 {[%clk 0:00:58]} 29... e3 {[%clk 0:00:25.3]} 30. Bxe3 {[%clk 0:00:54.5]}
30... Nxe3 {[%clk 0:00:25.5]} 31. fxe3 {[%clk 0:00:55.4]} 31... Qxe3+ {[%clk
0:00:25.9]} 32. Kg2 {[%clk 0:00:54.4]} 32... Qe4+ {[%clk 0:00:24.8]} 33. Kh2
{[%clk 0:00:52.5]} 33... Qc2+ {[%clk 0:00:20.5]} 34. Kh3 {[%clk 0:00:51.5]}
34... Qf5+ {[%clk 0:00:19.8]} 35. Kh2 {[%clk 0:00:51.2]} 35... Qc2+ {[%clk
0:00:18.6]} 36. Kh3 {[%clk 0:00:51.2]} 36... Qb1 {[%clk 0:00:19.1]} 37. Qxb7
{[%clk 0:00:45.6]} 37... Qxa2 {[%clk 0:00:17.8]} 38. Qxf7 {[%clk 0:00:42.5]}
38... Qc2 {[%clk 0:00:14.7]} 39. d5 {[%clk 0:00:38.4]} 39... Qb1 {[%clk
0:00:12.9]} 40. Qe6 {[%clk 0:00:25.5]} 40... Qh1+ {[%clk 0:00:11.5]} 41. Kg4
{[%clk 0:00:25.6]} 41... h5+ {[%clk 0:00:09]} 42. Kxh5 {[%clk 0:00:20.3]} 42...
Qf3+ {[%clk 0:00:08.8]} 43. g4 {[%clk 0:00:17.4]} 43... Qxb3 {[%clk 0:00:04.6]}
44. Qc8 {[%clk 0:00:15.6]} 44... Qxd5+ {[%clk 0:00:03.7]} 45. g5 {[%clk
0:00:06.9]} 45... Qf3+ {[%clk 0:00:03.9]} 46. Qg4 {[%clk 0:00:07.2]} 46... g6#
{[%clk 0:00:04.4]} 0-1

[Event "*** Titled Tuesday Blitz"]
[Site "Chess.com"]
[Date "2021.04.20"]
[Round "2"]
[White "profofchess"]
[Black "GoltsevDmitry2000"]
[Result "0-1"]
[WhiteElo "2500"]
[BlackElo "2728"]
[TimeControl "180+1"]
[EndTime "10:17:57 PDT"]
[Termination "GoltsevDmitry2000 won on time"]

1. e4 {[%clk 0:03:00.9]} 1... c5 {[%clk 0:02:58.4]} 2. Nf3 {[%clk 0:03:01.1]}
2... e6 {[%clk 0:02:57.1]} 3. c3 {[%clk 0:03:01.1]} 3... Nc6 {[%clk 0:02:54.6]}
4. d4 {[%clk 0:03:00.3]} 4... cxd4 {[%clk 0:02:51.1]} 5. cxd4 {[%clk 0:03:00.3]}
5... d5 {[%clk 0:02:50.6]} 6. e5 {[%clk 0:03:00.5]} 6... Nge7 {[%clk 0:02:50]}
7. Bd3 {[%clk 0:02:58.6]} 7... Nf5 {[%clk 0:02:48]} 8. Be3 {[%clk 0:02:54.4]}
8... Qb6 {[%clk 0:02:39.7]} 9. Qd2 {[%clk 0:02:47.8]} 9... Bd7 {[%clk
0:02:32.3]} 10. Nc3 {[%clk 0:02:42.5]} 10... Nfxd4 {[%clk 0:02:10.8]} 11. Nxd4
{[%clk 0:02:20.7]} 11... Nxd4 {[%clk 0:01:48.3]} 12. O-O {[%clk 0:01:29.5]}
12... Bc5 {[%clk 0:01:40.7]} 13. b4 {[%clk 0:01:29.1]} 13... Qxb4 {[%clk
0:01:27.1]} 14. Rab1 {[%clk 0:01:29]} 14... Qa5 {[%clk 0:01:27.3]} 15. Rxb7
{[%clk 0:01:28.2]} 15... Bc6 {[%clk 0:01:26.1]} 16. Rb2 {[%clk 0:00:52.4]} 16...
Rc8 {[%clk 0:01:14]} 17. Bb1 {[%clk 0:00:35.5]} 17... Nf5 {[%clk 0:01:07.8]} 18.
Bxc5 {[%clk 0:00:28.9]} 18... Qxc5 {[%clk 0:01:08.7]} 19. Bxf5 {[%clk
0:00:25.8]} 19... exf5 {[%clk 0:01:09.6]} 20. Ne2 {[%clk 0:00:25.8]} 20... O-O
{[%clk 0:01:06.4]} 21. Nd4 {[%clk 0:00:25.8]} 21... Bd7 {[%clk 0:01:06.1]} 22.
f4 {[%clk 0:00:25.1]} 22... Rb8 {[%clk 0:01:05]} 23. Kh1 {[%clk 0:00:24.6]}
23... Rfc8 {[%clk 0:01:03.6]} 24. Rd1 {[%clk 0:00:24]} 24... g6 {[%clk
0:01:01.7]} 25. h3 {[%clk 0:00:24.1]} 25... Ba4 {[%clk 0:00:59.1]} 26. Rxb8
{[%clk 0:00:23.1]} 26... Rxb8 {[%clk 0:00:55.1]} 27. Nb3 {[%clk 0:00:20.8]}
27... Bxb3 {[%clk 0:00:52.8]} 28. axb3 {[%clk 0:00:21.7]} 28... Rxb3 {[%clk
0:00:52.6]} 29. Qxd5 {[%clk 0:00:21.9]} 29... Qxd5 {[%clk 0:00:45.2]} 30. Rxd5
{[%clk 0:00:22.8]} 30... Rb4 {[%clk 0:00:41]} 31. g3 {[%clk 0:00:21.3]} 31...
Rb7 {[%clk 0:00:39.3]} 32. Ra5 {[%clk 0:00:19.5]} 32... Kf8 {[%clk 0:00:38.7]}
33. Ra6 {[%clk 0:00:19.1]} 33... Ke7 {[%clk 0:00:38.7]} 34. h4 {[%clk
0:00:18.9]} 34... Kd7 {[%clk 0:00:39.1]} 35. Rf6 {[%clk 0:00:16.5]} 35... Kc8
{[%clk 0:00:38.5]} 36. Ra6 {[%clk 0:00:08.4]} 36... Kb8 {[%clk 0:00:37.9]} 37.
Kg2 {[%clk 0:00:08.7]} 37... Rb6 {[%clk 0:00:37.5]} 38. Ra5 {[%clk 0:00:08.3]}
38... Kb7 {[%clk 0:00:37.2]} 39. Kh3 {[%clk 0:00:08.2]} 39... a6 {[%clk
0:00:35.1]} 40. h5 {[%clk 0:00:07.9]} 40... Rc6 {[%clk 0:00:33.6]} 41. h6 {[%clk
0:00:07.1]} 41... Kb6 {[%clk 0:00:34]} 42. Ra3 {[%clk 0:00:06.6]} 42... a5
{[%clk 0:00:34.4]} 43. Kh4 {[%clk 0:00:06.9]} 43... Kb5 {[%clk 0:00:34.3]} 44.
Kg5 {[%clk 0:00:06.2]} 44... Kb4 {[%clk 0:00:34.7]} 45. Rd3 {[%clk 0:00:05.9]}
45... a4 {[%clk 0:00:35.2]} 46. Rd7 {[%clk 0:00:05.9]} 46... a3 {[%clk 0:00:33]}
47. Rb7+ {[%clk 0:00:05.9]} 47... Kc3 {[%clk 0:00:30.8]} 48. Ra7 {[%clk
0:00:05]} 48... Kb2 {[%clk 0:00:30.8]} 49. Rb7+ {[%clk 0:00:05.2]} 49... Kc3
{[%clk 0:00:26.8]} 50. Ra7 {[%clk 0:00:05.2]} 50... Kb4 {[%clk 0:00:27.3]} 51.
Rb7+ {[%clk 0:00:05.4]} 51... Ka5 {[%clk 0:00:26.4]} 0-1

[Event "*** Titled Tuesday Blitz"]
[Site "Chess.com"]
[Date "2021.04.20"]
[Round "2"]
[White "UnknownxArmy"]
[Black "VladaSviridova"]
[Result "1-0"]
[WhiteElo "2465"]
[BlackElo "2265"]
[TimeControl "180+1"]
[EndTime "10:17:59 PDT"]
[Termination "UnknownxArmy won by resignation"]

1. d4 {[%clk 0:03:00.9]} 1... d5 {[%clk 0:02:58.7]} 2. c4 {[%clk 0:03:00.5]}
2... c6 {[%clk 0:02:59.1]} 3. Nf3 {[%clk 0:03:00.1]} 3... Nf6 {[%clk 0:02:59.4]}
4. e3 {[%clk 0:02:58.7]} 4... Bf5 {[%clk 0:02:58.4]} 5. Nc3 {[%clk 0:02:58.8]}
5... e6 {[%clk 0:02:58.4]} 6. Bd3 {[%clk 0:02:56.8]} 6... Bxd3 {[%clk
0:02:57.8]} 7. Qxd3 {[%clk 0:02:57.7]} 7... Nbd7 {[%clk 0:02:51.4]} 8. O-O
{[%clk 0:02:57]} 8... Be7 {[%clk 0:02:49.7]} 9. e4 {[%clk 0:02:57.2]} 9... dxe4
{[%clk 0:02:49.3]} 10. Nxe4 {[%clk 0:02:58.1]} 10... Nxe4 {[%clk 0:02:48.6]} 11.
Qxe4 {[%clk 0:02:59]} 11... Nf6 {[%clk 0:02:48.7]} 12. Qe2 {[%clk 0:02:58.9]}
12... O-O {[%clk 0:02:47.5]} 13. h3 {[%clk 0:02:58.5]} 13... c5 {[%clk
0:02:35.4]} 14. dxc5 {[%clk 0:02:55.2]} 14... Bxc5 {[%clk 0:02:34.8]} 15. b3
{[%clk 0:02:52.8]} 15... Qe7 {[%clk 0:02:29.4]} 16. Bb2 {[%clk 0:02:50.8]} 16...
Rfd8 {[%clk 0:02:07.9]} 17. Rfe1 {[%clk 0:02:23.8]} 17... h6 {[%clk 0:02:03.4]}
18. Qc2 {[%clk 0:02:14]} 18... Ba3 {[%clk 0:01:37.4]} 19. Be5 {[%clk 0:02:07.9]}
19... Rd7 {[%clk 0:01:31.6]} 20. Nd4 {[%clk 0:01:56]} 20... Rad8 {[%clk
0:01:24.8]} 21. Rad1 {[%clk 0:01:48]} 21... a6 {[%clk 0:01:14.5]} 22. Rd3 {[%clk
0:01:29]} 22... Bd6 {[%clk 0:00:43.3]} 23. Bxd6 {[%clk 0:01:24.9]} 23... Qxd6
{[%clk 0:00:41.3]} 24. Red1 {[%clk 0:01:14]} 24... Qb4 {[%clk 0:00:15.8]} 25.
Nf3 {[%clk 0:00:39]} 25... Rxd3 {[%clk 0:00:15]} 26. Rxd3 {[%clk 0:00:39.9]}
26... Rxd3 {[%clk 0:00:15]} 27. Qxd3 {[%clk 0:00:40.8]} 27... Qa3 {[%clk
0:00:13.8]} 28. Qd2 {[%clk 0:00:33.8]} 28... Qe7 {[%clk 0:00:10.7]} 29. Ne5
{[%clk 0:00:23.9]} 29... Ne4 {[%clk 0:00:09.6]} 30. Qe3 {[%clk 0:00:23.3]} 30...
Nc5 {[%clk 0:00:09.3]} 31. Nf3 {[%clk 0:00:21.4]} 31... Nd7 {[%clk 0:00:08.8]}
32. Qa7 {[%clk 0:00:19.8]} 32... Nf6 {[%clk 0:00:07.7]} 33. Qb8+ {[%clk
0:00:19.4]} 33... Kh7 {[%clk 0:00:07.8]} 34. Qe5 {[%clk 0:00:18]} 34... Qd7
{[%clk 0:00:07.1]} 35. Kh2 {[%clk 0:00:17.3]} 35... Qc8 {[%clk 0:00:05.6]} 36.
Nd4 {[%clk 0:00:16]} 36... Nd7 {[%clk 0:00:05.1]} 37. Qd6 {[%clk 0:00:14.9]}
37... Nf6 {[%clk 0:00:04.5]} 38. c5 {[%clk 0:00:14.3]} 38... Nd7 {[%clk
0:00:04.4]} 39. b4 {[%clk 0:00:14.1]} 39... Qb8 {[%clk 0:00:03.9]} 40. Qxb8
{[%clk 0:00:10.9]} 40... Nxb8 {[%clk 0:00:04.5]} 41. Kg3 {[%clk 0:00:10.7]}
41... Nc6 {[%clk 0:00:04.3]} 42. Nxc6 {[%clk 0:00:10]} 42... bxc6 {[%clk
0:00:04.6]} 43. Kf4 {[%clk 0:00:09.7]} 43... Kg6 {[%clk 0:00:04.7]} 44. Ke5
{[%clk 0:00:10.1]} 44... Kg5 {[%clk 0:00:05]} 45. Kd6 {[%clk 0:00:10.4]} 45...
Kf5 {[%clk 0:00:04.3]} 46. Kxc6 {[%clk 0:00:10.9]} 46... e5 {[%clk 0:00:04.4]}
47. Kd6 {[%clk 0:00:10.1]} 47... e4 {[%clk 0:00:04.5]} 48. c6 {[%clk 0:00:10.7]}
1-0

[Event "*** Titled Tuesday Blitz"]
[Site "Chess.com"]
[Date "2021.04.20"]
[Round "2"]
[White "KeithArkell"]
[Black "mishanick"]
[Result "0-1"]
[WhiteElo "2602"]
[BlackElo "2973"]
[TimeControl "180+1"]
[EndTime "10:18:01 PDT"]
[Termination "mishanick won on time"]

1. d4 {[%clk 0:03:00.9]} 1... Nf6 {[%clk 0:02:59.8]} 2. Nf3 {[%clk 0:03:00.6]}
2... d5 {[%clk 0:02:59.7]} 3. c4 {[%clk 0:02:59.9]} 3... e6 {[%clk 0:02:58.8]}
4. cxd5 {[%clk 0:02:59.7]} 4... exd5 {[%clk 0:02:58.5]} 5. Nc3 {[%clk 0:03:00]}
5... Bf5 {[%clk 0:02:52]} 6. Bg5 {[%clk 0:02:54.7]} 6... c6 {[%clk 0:02:43.7]}
7. e3 {[%clk 0:02:44.9]} 7... Nbd7 {[%clk 0:02:43.8]} 8. Bd3 {[%clk 0:02:44]}
8... Bxd3 {[%clk 0:02:43.8]} 9. Qxd3 {[%clk 0:02:44.9]} 9... Bd6 {[%clk
0:02:41.9]} 10. O-O {[%clk 0:02:44.8]} 10... O-O {[%clk 0:02:41.6]} 11. Rfe1
{[%clk 0:02:44.3]} 11... Re8 {[%clk 0:02:33.9]} 12. Rab1 {[%clk 0:02:37.2]}
12... a5 {[%clk 0:02:33.1]} 13. Qc2 {[%clk 0:02:36.5]} 13... Qb6 {[%clk
0:02:25.6]} 14. Na4 {[%clk 0:02:30.2]} 14... Qb5 {[%clk 0:02:23.5]} 15. Bh4
{[%clk 0:02:20.2]} 15... Ne4 {[%clk 0:02:22.1]} 16. Nc3 {[%clk 0:02:19.5]} 16...
Qc4 {[%clk 0:02:15.1]} 17. Nd2 {[%clk 0:02:06.6]} 17... Nxd2 {[%clk 0:02:14.2]}
18. Qxd2 {[%clk 0:02:07.5]} 18... a4 {[%clk 0:02:11]} 19. Rec1 {[%clk
0:02:02.4]} 19... Qa6 {[%clk 0:02:07.3]} 20. b4 {[%clk 0:01:54.9]} 20... b5
{[%clk 0:01:59.3]} 21. Re1 {[%clk 0:01:44.8]} 21... Nb6 {[%clk 0:01:55.7]} 22.
e4 {[%clk 0:01:44.3]} 22... Nc4 {[%clk 0:01:54.7]} 23. Qd3 {[%clk 0:01:41.7]}
23... dxe4 {[%clk 0:01:35.3]} 24. Nxe4 {[%clk 0:01:31.1]} 24... h6 {[%clk
0:01:28.5]} 25. Bg3 {[%clk 0:01:18.5]} 25... Bf8 {[%clk 0:01:26.3]} 26. Re2
{[%clk 0:01:09.6]} 26... Qb7 {[%clk 0:01:24.8]} 27. Rbe1 {[%clk 0:00:57.9]}
27... Qd7 {[%clk 0:01:24.3]} 28. Qc3 {[%clk 0:00:32.6]} 28... Re6 {[%clk
0:01:21]} 29. Nc5 {[%clk 0:00:30.7]} 29... Bxc5 {[%clk 0:01:18.9]} 30. dxc5
{[%clk 0:00:30.7]} 30... Rae8 {[%clk 0:01:17]} 31. Rxe6 {[%clk 0:00:28.1]} 31...
Rxe6 {[%clk 0:01:17.9]} 32. Rxe6 {[%clk 0:00:25.2]} 32... fxe6 {[%clk
0:01:09.1]} 33. Bd6 {[%clk 0:00:21.9]} 33... e5 {[%clk 0:01:06.4]} 34. Qd3
{[%clk 0:00:19]} 34... Qg4 {[%clk 0:00:56.4]} 35. h3 {[%clk 0:00:18.4]} 35...
Qe6 {[%clk 0:00:39.3]} 36. Qe4 {[%clk 0:00:15.7]} 36... Qd7 {[%clk 0:00:20.4]}
37. Qg6 {[%clk 0:00:13.8]} 37... Qf7 {[%clk 0:00:16.5]} 38. Qe4 {[%clk
0:00:12.9]} 38... Qd5 {[%clk 0:00:15.7]} 39. Qg6 {[%clk 0:00:12.8]} 39... e4
{[%clk 0:00:08.3]} 40. Qe8+ {[%clk 0:00:11.6]} 40... Kh7 {[%clk 0:00:08.3]} 41.
Qd7 {[%clk 0:00:06.1]} 41... e3 {[%clk 0:00:06.1]} 42. fxe3 {[%clk 0:00:06.2]}
42... Nxe3 {[%clk 0:00:05.9]} 43. Kf2 {[%clk 0:00:04.1]} 43... Nd1+ {[%clk
0:00:04.3]} 44. Ke1 {[%clk 0:00:02.4]} 44... Ne3 {[%clk 0:00:03.4]} 45. Kf2
{[%clk 0:00:01.3]} 45... Nf5 {[%clk 0:00:04.1]} 0-1

[Event "*** Titled Tuesday Blitz"]
[Site "Chess.com"]
[Date "2021.04.20"]
[Round "2"]
[White "AEMEffi"]
[Black "shnitez"]
[Result "0-1"]
[WhiteElo "2315"]
[BlackElo "2528"]
[TimeControl "180+1"]
[EndTime "10:18:01 PDT"]
[Termination "shnitez won by resignation"]

1. d4 {[%clk 0:02:54.4]} 1... Nf6 {[%clk 0:02:52.4]} 2. c4 {[%clk 0:02:55.3]}
2... e6 {[%clk 0:02:52.4]} 3. Nc3 {[%clk 0:02:55.1]} 3... Bb4 {[%clk 0:02:52.8]}
4. e3 {[%clk 0:02:55.9]} 4... b6 {[%clk 0:02:52.8]} 5. f3 {[%clk 0:02:55.2]}
5... c5 {[%clk 0:02:50.8]} 6. d5 {[%clk 0:02:47.5]} 6... exd5 {[%clk 0:02:47.8]}
7. cxd5 {[%clk 0:02:48.4]} 7... d6 {[%clk 0:02:43.3]} 8. e4 {[%clk 0:02:42.6]}
8... O-O {[%clk 0:02:41.2]} 9. Ne2 {[%clk 0:02:32.9]} 9... Nh5 {[%clk
0:02:22.5]} 10. Be3 {[%clk 0:02:24.4]} 10... f5 {[%clk 0:02:09]} 11. a3 {[%clk
0:02:17.9]} 11... Bxc3+ {[%clk 0:01:42.7]} 12. Nxc3 {[%clk 0:02:18.8]} 12...
fxe4 {[%clk 0:01:42]} 13. Nxe4 {[%clk 0:02:19.7]} 13... Bf5 {[%clk 0:01:38.4]}
14. Bd3 {[%clk 0:02:14.7]} 14... Nd7 {[%clk 0:00:50.7]} 15. O-O {[%clk
0:02:05.7]} 15... Ne5 {[%clk 0:00:47.3]} 16. Be2 {[%clk 0:01:49.1]} 16... Bxe4
{[%clk 0:00:43.3]} 17. fxe4 {[%clk 0:01:48.4]} 17... Rxf1+ {[%clk 0:00:39]} 18.
Qxf1 {[%clk 0:01:46.9]} 18... Qh4 {[%clk 0:00:19.9]} 19. Qf5 {[%clk 0:01:36.7]}
19... Nf6 {[%clk 0:00:16.9]} 20. Bf3 {[%clk 0:01:09.9]} 20... Re8 {[%clk
0:00:13.4]} 21. Bg5 {[%clk 0:01:07]} 21... Nxf3+ {[%clk 0:00:12.3]} 22. gxf3
{[%clk 0:01:05.1]} 22... Qh5 {[%clk 0:00:12.5]} 23. Bxf6 {[%clk 0:01:03.7]}
23... Qxf5 {[%clk 0:00:12.4]} 24. exf5 {[%clk 0:01:04.6]} 24... gxf6 {[%clk
0:00:12.9]} 25. Kf2 {[%clk 0:01:04.3]} 25... Re5 {[%clk 0:00:10.2]} 26. Rd1
{[%clk 0:01:04.9]} 26... Kf7 {[%clk 0:00:09.7]} 27. f4 {[%clk 0:01:03.9]} 27...
Rxf5 {[%clk 0:00:09.6]} 28. Kf3 {[%clk 0:01:04.8]} 28... Rh5 {[%clk 0:00:09.8]}
29. Kg3 {[%clk 0:01:05]} 29... Rh6 {[%clk 0:00:09.4]} 30. h4 {[%clk 0:01:04.5]}
30... Rg6+ {[%clk 0:00:09.7]} 31. Kf3 {[%clk 0:01:04.1]} 31... h5 {[%clk
0:00:09.1]} 32. Re1 {[%clk 0:01:00.9]} 32... Rg4 {[%clk 0:00:08.8]} 33. Re6
{[%clk 0:00:54.2]} 33... Rxh4 {[%clk 0:00:09]} 34. Rxd6 {[%clk 0:00:54.7]} 34...
Rh3+ {[%clk 0:00:09.3]} 35. Ke4 {[%clk 0:00:52.8]} 35... Kg6 {[%clk 0:00:08.8]}
36. Rd8 {[%clk 0:00:45.9]} 36... Rh2 {[%clk 0:00:06.1]} 37. d6 {[%clk
0:00:30.3]} 37... Rd2 {[%clk 0:00:05.7]} 38. f5+ {[%clk 0:00:10.9]} 38... Kg5
{[%clk 0:00:02]} 39. Ke3 {[%clk 0:00:11.8]} 39... Rd4 {[%clk 0:00:01.9]} 40. b4
{[%clk 0:00:06.7]} 40... Kxf5 {[%clk 0:00:02.8]} 41. bxc5 {[%clk 0:00:06.5]}
41... bxc5 {[%clk 0:00:03.7]} 42. d7 {[%clk 0:00:04.9]} 42... Rd5 {[%clk
0:00:03.3]} 43. Rh8 {[%clk 0:00:05]} 43... Rxd7 {[%clk 0:00:03.4]} 44. Rxh5+
{[%clk 0:00:05.2]} 44... Ke6 {[%clk 0:00:03.9]} 45. Rxc5 {[%clk 0:00:06]} 45...
Rh7 {[%clk 0:00:03.8]} 46. Rc3 {[%clk 0:00:06.4]} 46... Rh3+ {[%clk 0:00:03.5]}
47. Kd4 {[%clk 0:00:07.3]} 47... Rxc3 {[%clk 0:00:04.4]} 48. Kxc3 {[%clk
0:00:08.1]} 48... Kd5 {[%clk 0:00:04.8]} 49. Kd3 {[%clk 0:00:09]} 49... Kc5
{[%clk 0:00:05]} 50. Ke3 {[%clk 0:00:09.8]} 50... Kb5 {[%clk 0:00:05.2]} 51. Kf4
{[%clk 0:00:10.7]} 51... Ka4 {[%clk 0:00:06.1]} 52. Kf5 {[%clk 0:00:11.6]} 52...
Kxa3 {[%clk 0:00:06.9]} 53. Kxf6 {[%clk 0:00:12.5]} 53... a5 {[%clk 0:00:07.6]}
54. Ke5 {[%clk 0:00:13.4]} 54... a4 {[%clk 0:00:08.5]} 55. Kd4 {[%clk
0:00:14.3]} 55... Kb2 {[%clk 0:00:08.6]} 56. Kd3 {[%clk 0:00:13.3]} 56... a3
{[%clk 0:00:09.5]} 0-1